bitfinex/quotes_ETHUSD_20250913
["timestamp","ask_amount","ask_price","bid_price","bid_amount"]
[1757733142906,118.7739,4705.9,4705.8,41.33592282]
[1757733143275,118.7739,4705.9,4705.8,38.68840497]
[1757733143475,120.0039,4705.9,4705.8,38.68840497]
[1757733144903,121.2339,4705.9,4705.8,38.68840497]
[1757733146308,122.4639,4705.9,4705.8,38.68840497]
[1757733147197,125.0941,4705.9,4705.8,38.68740497]
[1757733147571,126.3241,4705.9,4705.8,38.68740497]
[1757733149014,127.5541,4705.9,4705.8,38.68740497]
[1757733149221,129.71399719,4705.9,4705.8,27.026]
[1757733149391,129.71399719,4705.9,4705.8,3.539]
[1757733149590,129.71399719,4705.9,4705.8,36.539]
[1757733150423,130.94399719,4705.9,4705.8,36.539]
[1757733151645,128.7841,4705.9,4705.8,36.539]
[1757733151793,130.0141,4705.9,4705.8,36.539]
[1757733153114,131.2441,4705.9,4705.8,36.539]
[1757733154717,129.691,4705.9,4705.8,36.539]
[1757733154991,130.139,4705.9,4705.8,36.539]
[1757733155197,132.4741,4705.9,4705.8,36.539]
[1757733156047,133.7041,4705.9,4705.8,36.539]
[1757733157534,134.9341,4705.9,4705.8,36.539]
[1757733158905,134.8841,4705.9,4705.8,36.539]
[1757733159154,136.1141,4705.9,4705.8,36.6446]
[1757733160751,137.3441,4705.9,4705.8,36.6446]
[1757733162253,138.5741,4705.9,4705.8,36.6446]
[1757733162866,138.5741,4705.9,4705.8,36.6456]
[1757733163470,139.8041,4705.9,4705.8,36.6456]
[1757733165271,141.0341,4705.9,4705.8,36.6456]
[1757733166441,142.2641,4705.9,4705.8,36.6456]
[1757733167832,143.4941,4705.9,4705.8,36.6456]
[1757733169490,144.7241,4705.9,4705.8,36.6456]
[1757733170185,141.941,4705.9,4705.8,36.6456]
[1757733170584,142.3718,4705.9,4705.8,36.6456]
[1757733170756,145.9262,4705.9,4705.8,36.6456]
[1757733172436,147.1562,4705.9,4705.8,36.6456]
[1757733173635,148.3862,4705.9,4705.8,36.6456]
[1757733173834,145.3359,4705.9,4705.8,36.8524]
[1757733174048,145.3359,4705.9,4705.8,39.6176]
[1757733175102,146.5659,4705.9,4705.8,39.6176]
[1757733175499,146.5659,4705.9,4705.8,39.85488049]
[1757733176419,147.7959,4705.9,4705.8,39.85488049]
[1757733177792,149.0259,4705.9,4705.8,39.85488049]
[1757733179110,150.2559,4705.9,4705.8,39.85488049]
[1757733180407,151.4859,4705.9,4705.8,39.85488049]
[1757733181224,151.4859,4705.9,4705.8,39.6176]
[1757733181931,152.7159,4705.9,4705.8,36.8524]
[1757733182115,152.7159,4705.9,4705.8,37.3224]
[1757733182316,152.7159,4705.9,4705.8,39.6176]
[1757733183368,153.9459,4705.9,4705.8,39.6176]
[1757733183567,153.9459,4705.9,4705.8,40.64688049]
[1757733183931,153.9459,4705.9,4705.8,40.75248049]
[1757733184849,155.1759,4705.9,4705.8,40.75248049]
[1757733185561,140.24829918,4705.9,4705.8,40.98500979]
[1757733185765,127.08152989,4705.9,4705.8,41.19730979]
[1757733186006,119.53630056,4705.9,4705.8,41.19730979]
[1757733186203,114.39992025,4705.9,4705.8,41.19730979]
[1757733186410,107.02629568,4705.9,4705.8,42.23058859]
[1757733186586,104.90425878,4705.9,4705.8,42.23058859]
[1757733186758,100.6598714,4705.9,4705.8,42.47230979]
[1757733187110,91.1634336,4705.9,4705.8,42.47230979]
[1757733187307,83.41271117,4705.9,4705.8,42.47230979]
[1757733187511,80.39830914,4705.9,4705.8,42.47230979]
[1757733187906,69.55141053,4705.9,4705.8,42.02748049]
[1757733188417,65.3067377,4705.9,4705.8,42.02748049]
[1757733188566,61.06203424,4705.9,4705.8,32.72328049]
[1757733188763,62.29203424,4705.9,4705.8,36.018]
[1757733189069,51.68172873,4705.9,4705.8,38.3132]
[1757733189299,49.5597677,4705.9,4705.8,9.3464788]
[1757733189493,43.19350961,4705.9,4705.8,6.018]
[1757733189669,43.19350961,4705.9,4705.8,33.6376]
[1757733189869,34.45272404,4705.9,4705.8,33.8986]
[1757733190072,33.56082298,4705.9,4705.8,33.8986]
[1757733190295,33.56082298,4705.9,4705.8,30.3666]
[1757733190503,21.77110774,4705.9,4705.8,33.8976]
[1757733190710,15.38949409,4705.9,4705.8,36.8976]
[1757733191206,13.26759303,4705.9,4705.8,36.8976]
[1757733191405,6.00917726,4705.9,4705.8,36.8976]
[1757733192207,4.70917726,4705.9,4705.8,39.3197293]
[1757733192503,4.70917726,4705.9,4705.8,39.55700979]
[1757733192807,4.70917726,4705.9,4705.8,37.26180979]
[1757733192981,0.51530432,4705.9,4705.8,37.26180979]
[1757733194368,1.74530432,4705.9,4705.8,39.55700979]
[1757733194587,1.74530432,4705.9,4705.8,37.26180979]
[1757733195516,1.74530432,4705.9,4705.8,37.26280979]
[1757733195688,0.85291267,4705.9,4705.8,37.26280979]
[1757733195879,0.85491267,4705.9,4705.8,37.26280979]
[1757733196856,0.85491267,4705.9,4705.8,37.0255293]
[1757733196974,2.08491267,4705.9,4705.8,37.0255293]
[1757733197175,0.4328,4706.4,4705.9,3.0]
[1757733197388,2.2942,4706.3,4706.1,3.0]
[1757733197584,0.3093,4706.2,4706.0,3.0]
[1757733197791,2.7552,4706.3,4706.2,3.0]
[1757733198119,0.7703,4706.3,4706.2,30.0]
[1757733198509,1.23,4706.3,4706.2,30.0]
[1757733198712,1.23,4706.3,4706.2,30.261]
[1757733199718,0.002,4706.6,4706.3,30.0]
[1757733199926,0.002,4706.6,4706.4,8.62]
[1757733200099,0.002,4706.6,4706.5,34.629]
[1757733200496,0.3113,4706.6,4706.5,34.629]
[1757733200698,0.7723,4706.6,4706.5,34.629]
[1757733201298,2.0023,4706.6,4706.5,34.629]
[1757733202117,4.2965,4706.6,4706.5,34.629]
[1757733202427,4.2965,4706.6,4706.5,34.7346]
[1757733202602,5.5265,4706.6,4706.5,34.7346]
[1757733203491,5.5265,4706.6,4706.5,38.2646]
[1757733203837,5.5265,4706.6,4706.5,34.28643464]
[1757733203998,6.7565,4706.6,4706.5,37.81643464]
[1757733204194,6.7565,4706.6,4706.5,31.629]
[1757733204434,6.7565,4706.6,4706.5,38.16]
[1757733205627,7.9865,4706.6,4706.5,38.16]
[1757733205792,7.9865,4706.6,4706.5,4.629]
[1757733205992,7.9865,4706.6,4706.5,38.16]
[1757733207313,9.2165,4706.6,4706.5,38.16]
[1757733207944,9.2165,4706.6,4706.5,34.629]
[1757733208144,10.38435,4706.6,4706.5,35.159]
[1757733208332,10.38435,4706.6,4706.5,38.159]
[1757733208856,11.61435,4706.6,4706.5,38.159]
[1757733209359,10.4465,4706.6,4706.5,38.159]
[1757733209846,11.2385,4706.6,4706.5,35.16]
[1757733210009,11.2385,4706.6,4706.5,38.16]
[1757733210208,12.4685,4706.6,4706.5,34.629]
[1757733210409,13.96155,4706.6,4706.5,38.16]
[1757733211010,13.96155,4706.6,4706.5,8.16]
[1757733211251,13.96155,4706.6,4706.5,38.16]
[1757733211601,15.19155,4706.6,4706.5,38.16]
[1757733213056,16.42155,4706.6,4706.5,38.16]
[1757733213776,16.52715,4706.6,4706.5,38.16]
[1757733214438,17.75715,4706.6,4706.5,38.16]
[1757733215039,17.75715,4706.6,4706.5,38.159]
[1757733215864,18.98715,4706.6,4706.5,38.159]
[1757733217074,18.98715,4706.6,4706.5,38.16]
[1757733217278,20.21715,4706.6,4706.5,38.16]
[1757733218545,21.44715,4706.6,4706.5,38.16]
[1757733219277,21.44715,4706.6,4706.5,34.629]
[1757733219505,21.44715,4706.6,4706.4,3.532]
[1757733219506,0.792,4706.5,4706.4,3.532]
[1757733219713,6.02273166,4706.5,4706.4,3.532]
[1757733219894,6.001415,4706.5,4706.4,3.532]
[1757733221278,7.231415,4706.5,4706.4,6.531]
[1757733222582,8.461415,4706.5,4706.4,6.531]
[1757733223918,9.691415,4706.5,4706.4,6.531]
[1757733225405,10.921415,4706.5,4706.4,6.531]
[1757733226616,12.151415,4706.5,4706.4,6.531]
[1757733227058,12.151415,4706.5,4706.4,3.0]
[1757733228146,10.4255,4706.5,4706.4,36.531]
[1757733228440,7.38,4706.5,4706.4,37.09451556]
[1757733228741,8.172,4706.5,4706.4,37.09451556]
[1757733228927,7.38,4706.5,4706.4,37.09451556]
[1757733229444,8.2776,4706.5,4706.4,37.09451556]
[1757733229646,9.5076,4706.5,4706.4,36.81089722]
[1757733230137,9.5096,4706.5,4706.4,6.531]
[1757733230337,9.5096,4706.5,4706.4,36.531]
[1757733230540,10.2506,4706.5,4706.4,36.531]
[1757733230938,11.4806,4706.5,4706.4,36.531]
[1757733232241,12.7106,4706.5,4706.4,36.531]
[1757733233621,13.9406,4706.5,4706.4,36.531]
[1757733234210,13.9406,4706.5,4706.4,6.531]
[1757733234409,13.9406,4706.5,4706.4,36.531]
[1757733235236,13.9406,4706.5,4706.4,6.531]
[1757733235432,15.1706,4706.5,4706.4,36.531]
[1757733236476,14.8716,4706.5,4706.4,36.531]
[1757733236680,16.1016,4706.5,4706.4,36.531]
[1757733236834,15.6596,4706.5,4706.4,36.792]
[1757733238577,16.8896,4706.5,4706.4,36.792]
[1757733238874,16.8896,4706.5,4706.4,36.531]
[1757733239378,16.8896,4706.5,4706.4,6.531]
[1757733239577,16.8896,4706.5,4706.4,36.531]
[1757733240377,18.1196,4706.5,4706.4,36.531]
[1757733241545,19.6486,4706.5,4706.4,33.0]
[1757733241893,23.69117072,4706.5,4706.4,36.531]
[1757733243171,24.92117072,4706.5,4706.4,36.531]
[1757733244402,24.92117072,4706.5,4706.4,33.0]
[1757733244587,26.15117072,4706.5,4706.4,33.0]
[1757733246149,27.38117072,4706.5,4706.4,33.0]
[1757733247498,27.38117072,4706.5,4706.4,30.0]
[1757733247651,27.38117072,4706.5,4706.3,0.001]
[1757733247652,0.792,4706.4,4706.3,0.001]
[1757733247850,2.97321385,4706.4,4706.3,30.001]
[1757733248160,6.11431385,4706.4,4706.3,33.001]
[1757733248361,6.09299719,4706.4,4706.3,33.001]
[1757733248947,6.09299719,4706.4,4706.3,3.001]
[1757733249283,7.32299719,4706.4,4706.3,3.001]
[1757733250727,10.86699719,4706.4,4706.3,3.001]
[1757733250932,12.09699719,4706.4,4706.3,3.001]
[1757733251991,12.09699719,4706.4,4706.3,0.001]
[1757733252424,13.32699719,4706.4,4706.3,0.001]
[1757733253795,14.55699719,4706.4,4706.3,0.001]
[1757733254190,5.219,4706.4,4706.3,30.001]
[1757733254391,4.92,4706.4,4706.3,36.543]
[1757733254629,4.92,4706.4,4706.3,36.804]
[1757733254807,5.712,4706.4,4706.3,36.804]
[1757733255206,6.942,4706.4,4706.3,6.804]
[1757733255405,6.15,4706.4,4706.3,6.804]
[1757733256038,6.15,4706.4,4706.3,36.804]
[1757733256421,6.942,4706.4,4706.3,36.804]
[1757733256627,8.172,4706.4,4706.3,36.804]
[1757733257246,8.172,4706.4,4706.3,6.804]
[1757733258160,9.402,4706.4,4706.3,36.804]
[1757733259565,8.61,4706.4,4706.3,39.2763]
[1757733259764,9.84,4706.4,4706.3,40.00291556]
[1757733261144,11.07,4706.4,4706.3,40.00291556]
[1757733262064,10.81547622,4706.4,4706.3,42.86810384]
[1757733262431,12.04547622,4706.4,4706.3,42.86810384]
[1757733263644,12.04547622,4706.4,4706.3,40.2106692]
[1757733263970,13.27547622,4706.4,4706.3,40.2106692]
[1757733264332,13.27547622,4706.4,4706.3,40.3162692]
[1757733264532,11.97547622,4706.4,4706.3,40.73973268]
[1757733264727,11.97547622,4706.4,4706.3,40.63413268]
[1757733265137,13.20547622,4706.4,4706.3,40.63413268]
[1757733266670,14.43547622,4706.4,4706.3,40.63413268]
[1757733266832,23.372,4706.5,4706.4,3.0]
[1757733267034,13.85982267,4706.5,4706.4,37.2461532]
[1757733267341,13.85982267,4706.5,4706.4,37.5071532]
[1757733267342,7.49424913,4706.5,4706.4,37.5071532]
[1757733267557,5.3720001,4706.5,4706.4,38.56519059]
[1757733267727,14.10744897,4706.6,4706.4,37.5071532]
[1757733267933,7.74274998,4706.6,4706.5,36.1784]
[1757733268134,1.37802384,4706.6,4706.5,36.9715192]
[1757733268355,1.37802384,4706.6,4706.5,37.2325192]
[1757733268956,1e-08,4706.6,4706.5,37.2325192]
[1757733269234,0.002,4706.9,4706.6,3.79311919]
[1757733269544,0.002,4706.9,4706.8,3.0]
[1757733269745,0.002,4706.9,4706.8,32.90378788]
[1757733269945,0.002,4706.9,4706.8,36.44578788]
[1757733270147,0.002,4706.9,4706.8,39.2753]
[1757733270470,0.002,4706.9,4706.8,9.2753]
[1757733270677,1.232,4706.9,4706.8,39.2753]
[1757733272202,2.462,4706.9,4706.8,39.2753]
[1757733272582,2.462,4706.9,4706.8,36.803]
[1757733273576,3.692,4706.9,4706.8,36.803]
[1757733274667,3.692,4706.9,4706.8,36.9086]
[1757733275111,4.922,4706.9,4706.8,30.1056]
[1757733276109,4.922,4706.9,4706.8,28.59064349]
[1757733276271,4.922,4706.9,4706.8,32.13164349]
[1757733276471,6.152,4706.9,4706.8,32.13164349]
[1757733276671,6.6243,4706.9,4706.8,33.6466]
[1757733276902,4.852,4706.9,4706.8,36.60136555]
[1757733277204,4.852,4706.9,4706.8,39.60136555]
[1757733277775,6.082,4706.9,4706.8,39.60136555]
[1757733278677,6.082,4706.9,4706.8,9.60136555]
[1757733279034,6.082,4706.9,4706.8,39.60136555]
[1757733279181,7.312,4706.9,4706.8,39.60136555]
[1757733279531,7.312,4706.9,4706.8,39.32146834]
[1757733279760,7.312,4706.9,4706.8,36.84916834]
[1757733280663,8.542,4706.9,4706.8,36.84916834]
[1757733282226,9.772,4706.9,4706.8,36.84916834]
[1757733283555,11.002,4706.9,4706.8,36.84916834]
[1757733283734,11.002,4706.9,4706.8,39.83096919]
[1757733284673,11.002,4706.9,4706.8,42.47375707]
[1757733284825,12.232,4706.9,4706.8,42.47375707]
[1757733285541,12.232,4706.9,4706.8,39.83096919]
[1757733285944,12.232,4706.9,4706.8,9.83096919]
[1757733286123,12.232,4706.9,4706.8,39.83096919]
[1757733286324,13.462,4706.9,4706.8,39.83096919]
[1757733286970,13.462,4706.9,4706.8,9.93656919]
[1757733287176,13.462,4706.9,4706.8,39.93656919]
[1757733287632,14.692,4706.9,4706.8,39.93656919]
[1757733288034,14.692,4706.9,4706.8,37.46426919]
[1757733288233,14.692,4706.9,4706.8,37.18437198]
[1757733289142,15.922,4706.9,4706.8,37.18437198]
[1757733290179,16.3646,4706.9,4706.8,37.18837198]
[1757733290384,16.6727,4706.9,4706.8,37.18837198]
[1757733290560,17.9027,4706.9,4706.8,37.18837198]
[1757733291082,20.1528,4706.9,4706.8,36.95876834]
[1757733291947,21.3828,4706.9,4706.8,33.6506]
[1757733292336,21.3828,4706.9,4706.8,36.6506]
[1757733293051,21.3828,4706.9,4706.8,39.31111502]
[1757733293368,22.6128,4706.9,4706.8,39.61928336]
[1757733293564,22.6128,4706.9,4706.8,36.95876834]
[1757733294064,22.6128,4706.9,4706.8,6.95876834]
[1757733294266,22.6128,4706.9,4706.8,36.95876834]
[1757733294834,23.8428,4706.9,4706.8,36.95876834]
[1757733295079,23.8428,4706.9,4706.8,6.95876834]
[1757733295241,23.8428,4706.9,4706.8,36.95876834]
[1757733295639,20.842,4706.9,4706.8,36.95876834]
[1757733295844,20.842,4706.9,4706.8,37.23866555]
[1757733296151,22.072,4706.9,4706.8,37.46826919]
[1757733297484,23.302,4706.9,4706.8,37.46826919]
[1757733298661,24.9746,4706.9,4706.8,37.46826919]
[1757733298854,25.2827,4706.9,4706.8,37.46826919]
[1757733299059,25.2827,4706.9,4706.8,37.46926919]
[1757733300004,26.5127,4706.9,4706.8,37.46926919]
[1757733300495,28.7628,4706.9,4706.8,37.18937198]
[1757733301210,28.7628,4706.9,4706.8,7.18937198]
[1757733301414,29.9928,4706.9,4706.8,37.18937198]
[1757733301719,29.9928,4706.9,4706.8,36.88120364]
[1757733302310,29.9928,4706.9,4706.8,39.31213904]
[1757733302722,31.2228,4706.9,4706.8,39.31213904]
[1757733303639,33.38269719,4706.9,4706.8,39.20753904]
[1757733303838,34.17469719,4706.9,4706.8,36.20753904]
[1757733303977,35.51029719,4706.9,4706.8,33.547]
[1757733304496,35.51029719,4706.9,4706.8,36.547]
[1757733305500,36.74029719,4706.9,4706.8,36.547]
[1757733306920,35.8104,4706.9,4706.8,36.547]
[1757733308348,37.0404,4706.9,4706.8,36.547]
[1757733309852,38.2704,4706.9,4706.8,36.547]
[1757733311289,39.5004,4706.9,4706.8,36.547]
[1757733312802,40.7304,4706.9,4706.8,36.547]
[1757733313394,42.89029719,4706.9,4706.8,33.001]
[1757733313723,42.89029719,4706.9,4706.8,36.545]
[1757733314060,44.12029719,4706.9,4706.8,36.545]
[1757733315508,45.35029719,4706.9,4706.8,6.545]
[1757733315669,43.0848,4706.9,4706.8,36.545]
[1757733315869,43.0848,4706.9,4706.8,37.13306555]
[1757733316668,43.0848,4706.9,4706.8,36.545]
[1757733316916,44.3148,4706.9,4706.8,36.545]
[1757733317063,44.3168,4706.9,4706.8,36.545]
[1757733318203,45.5468,4706.9,4706.8,36.545]
[1757733319626,46.7768,4706.9,4706.8,36.545]
[1757733320134,48.93669719,4706.9,4706.8,36.545]
[1757733321029,50.16669719,4706.9,4706.8,36.545]
[1757733321595,50.16669719,4706.9,4706.8,6.545]
[1757733321802,50.16669719,4706.9,4706.8,36.545]
[1757733322226,51.39669719,4706.9,4706.8,36.545]
[1757733322436,46.9867,4706.9,4706.8,36.545]
[1757733323644,48.2167,4706.9,4706.8,36.545]
[1757733324999,51.9412,4706.9,4706.8,36.545]
[1757733326294,51.9412,4706.9,4706.8,33.001]
[1757733326494,53.1712,4706.9,4706.8,36.543]
[1757733326840,55.33109719,4706.9,4706.8,36.543]
[1757733327736,55.33109719,4706.9,4706.8,33.543]
[1757733327890,56.56109719,4706.9,4706.8,36.543]
[1757733329718,57.79109719,4706.9,4706.8,36.543]
[1757733331432,59.02109719,4706.9,4706.8,36.543]
[1757733331834,59.02109719,4706.9,4706.8,6.543]
[1757733332169,59.02109719,4706.9,4706.8,36.543]
[1757733332832,60.25109719,4706.9,4706.8,36.543]
[1757733333671,60.25109719,4706.9,4706.8,6.543]
[1757733334241,61.48109719,4706.9,4706.8,3.001]
[1757733335689,62.71109719,4706.9,4706.8,3.001]
[1757733337185,63.94109719,4706.9,4706.8,3.001]
[1757733338440,65.17109719,4706.9,4706.8,3.001]
[1757733340106,66.40109719,4706.9,4706.8,3.001]
[1757733341485,67.63109719,4706.9,4706.8,3.001]
[1757733342884,68.86109719,4706.9,4706.8,3.001]
[1757733344701,67.30549719,4706.9,4706.8,3.001]
[1757733344881,65.4525,4706.9,4706.8,33.001]
[1757733345087,65.4673,4706.9,4706.8,33.30916834]
[1757733346019,66.6973,4706.9,4706.8,33.30916834]
[1757733347008,66.6973,4706.9,4706.8,33.001]
[1757733347381,66.354,4706.9,4706.8,33.001]
[1757733347719,66.354,4706.9,4706.8,36.03946555]
[1757733348217,67.146,4706.9,4706.8,36.03946555]
[1757733348823,68.376,4706.9,4706.8,36.03946555]
[1757733350132,69.606,4706.9,4706.8,36.03946555]
[1757733350482,69.606,4706.9,4706.8,33.58906555]
[1757733351281,69.606,4706.9,4706.8,33.30916834]
[1757733351501,70.836,4706.9,4706.8,33.58906555]
[1757733353052,72.066,4706.9,4706.8,33.58906555]
[1757733353709,68.7724,4706.9,4706.8,36.4046068]
[1757733354000,68.50375781,4706.9,4706.8,36.4046068]
[1757733354200,69.73375781,4706.9,4706.8,36.4046068]
[1757733354537,69.73375781,4706.9,4706.8,6.4046068]
[1757733354745,69.73375781,4706.9,4706.8,36.4046068]
[1757733355738,70.96375781,4706.9,4706.8,36.4046068]
[1757733356804,111.58802607,4707.8,4707.0,1.06122768]
[1757733357006,109.46670507,4707.8,4707.3,0.792]
[1757733357200,105.20324577,4707.8,4707.5,4.08015587]
[1757733357503,98.81263316,4707.8,4707.7,4.03062062]
[1757733357729,98.81263316,4707.8,4707.7,33.88723196]
[1757733357730,91.09906787,4707.8,4707.7,33.88723196]
[1757733357925,91.09906787,4707.8,4707.7,34.91785258]
[1757733358332,86.73957219,4707.8,4707.7,37.44323196]
[1757733358529,87.96957219,4707.8,4707.7,37.86203687]
[1757733358918,79.377943,4707.8,4707.7,36.83141625]
[1757733359119,79.377943,4707.8,4707.7,37.86203687]
[1757733359657,12.28123198,4707.8,4707.7,39.56108901]
[1757733359807,1e-08,4707.8,4707.7,38.53046839]
[1757733360009,1e-08,4708.7,4707.8,0.92175616]
[1757733360213,37.7159802,4709.0,4707.8,0.92175616]
[1757733360214,60.11689123,4708.8,4708.0,3.0]
[1757733360448,60.11689123,4708.8,4708.7,3.0]
[1757733360653,60.11689123,4708.8,4708.7,37.18954663]
[1757733361012,57.99589085,4708.8,4708.7,37.18954663]
[1757733361212,52.57341389,4708.8,4708.7,37.98522239]
[1757733361408,52.57341389,4708.8,4708.7,37.63584698]
[1757733362210,52.57341389,4708.8,4708.7,37.98422239]
[1757733363993,53.80341389,4708.8,4708.7,37.98422239]
[1757733365421,53.80341389,4708.8,4708.7,39.36601016]
[1757733365422,40.65,4708.8,4708.7,39.36601016]
[1757733365661,40.17702266,4708.8,4708.7,40.92554337]
[1757733365826,33.8148033,4708.8,4708.7,40.92554337]
[1757733366447,33.8148033,4708.8,4708.7,38.28843192]
[1757733366854,33.8148033,4708.8,4708.7,38.39403192]
[1757733367146,35.0448033,4708.8,4708.7,38.39403192]
[1757733367347,35.0448033,4708.8,4708.7,38.28843192]
[1757733367348,5.8539275,4708.8,4708.7,38.28843192]
[1757733367548,29.39412051,4709.0,4708.8,0.59513035]
[1757733367749,19.85069376,4709.0,4708.9,36.581]
[1757733367962,12.07982148,4709.0,4708.9,37.48033988]
[1757733368163,6.77897109,4709.0,4708.9,37.48033988]
[1757733368375,2.46,4709.2,4708.9,40.10499685]
[1757733368540,0.00090738,4709.1,4709.0,36.53724311]
[1757733368742,0.00090738,4709.1,4709.0,40.11824311]
[1757733369677,0.00090738,4709.1,4709.0,10.11824311]
[1757733370249,0.00090738,4709.1,4709.0,40.11824311]
[1757733371246,4.37119128,4709.5,4709.0,39.10833988]
[1757733371448,4.37119128,4709.5,4709.2,3.0]
[1757733371662,4.37119128,4709.5,4709.4,3.0]
[1757733371896,4.37119128,4709.5,4709.4,33.36960953]
[1757733372049,4.37119128,4709.5,4709.4,33.65258494]
[1757733372246,4.37119128,4709.5,4709.4,29.41199517]
[1757733372585,5.60119128,4709.5,4709.4,29.41199517]
[1757733372759,5.60119128,4709.5,4709.4,30.65258494]
[1757733374026,6.83119128,4709.5,4709.4,30.65258494]
[1757733374312,0.46904444,4709.5,4709.4,31.53276195]
[1757733374488,0.7575,4709.5,4709.4,31.53276195]
[1757733374689,3.2211,4709.5,4709.4,31.53276195]
[1757733374889,3.2211,4709.5,4709.4,33.0]
[1757733375417,2.62531411,4709.5,4709.4,33.0]
[1757733375781,0.50422453,4709.5,4709.4,33.0]
[1757733375975,2.41467793,4709.5,4709.4,33.0]
[1757733376808,3.64467793,4709.5,4709.4,33.0]
[1757733377527,3.64467793,4709.5,4709.4,33.1056]
[1757733377908,5.94147793,4709.5,4709.4,33.1056]
[1757733378110,7.17147793,4709.5,4709.4,33.1056]
[1757733378325,7.62517793,4709.5,4709.4,33.1056]
[1757733379153,4.57977793,4709.5,4709.4,33.71774412]
[1757733379424,4.57977793,4709.5,4709.4,34.44260286]
[1757733379590,1.56912531,4709.5,4709.4,34.44260286]
[1757733379915,1.56912531,4709.5,4709.4,33.99660286]
[1757733380422,0.002,4709.8,4709.5,3.31934412]
[1757733380591,0.002,4709.8,4709.7,3.0]
[1757733380778,0.002,4709.8,4709.7,33.44617689]
[1757733380984,1.232,4709.8,4709.7,33.61214412]
[1757733381213,9.84,4710.0,4709.8,0.31934412]
[1757733381448,0.2949,4709.9,4709.8,0.31934412]
[1757733381624,12.1368,4710.0,4709.8,38.52234412]
[1757733381829,12.1368,4710.0,4709.9,33.0]
[1757733382214,12.4317,4710.0,4709.9,33.0]
[1757733382410,13.6617,4710.0,4709.9,33.0]
[1757733382733,14.1154,4710.0,4709.9,33.0]
[1757733383456,14.1154,4710.0,4709.9,33.31934412]
[1757733383656,15.3454,4710.0,4709.9,33.31934412]
[1757733384209,15.3454,4710.0,4709.9,36.89334412]
[1757733384509,17.49494,4710.0,4709.9,30.0]
[1757733384709,17.60054,4710.0,4709.9,33.574]
[1757733385272,18.83054,4710.0,4709.9,36.574]
[1757733386633,20.05764,4710.0,4709.9,36.574]
[1757733387944,17.8025,4710.0,4709.9,36.89334412]
[1757733388242,19.0325,4710.0,4709.9,36.89334412]
[1757733388611,19.0325,4710.0,4709.9,36.89234412]
[1757733388940,19.0325,4710.0,4709.9,36.573]
[1757733389333,18.5817,4710.0,4709.9,36.573]
[1757733389680,19.8117,4710.0,4709.9,36.573]
[1757733389823,20.2625,4710.0,4709.9,36.573]
[1757733390929,21.4925,4710.0,4709.9,36.573]
[1757733392442,22.2717,4710.0,4709.9,36.573]
[1757733392965,22.7225,4710.0,4709.9,36.573]
[1757733393869,23.9525,4710.0,4709.9,36.573]
[1757733395044,25.1825,4710.0,4709.9,36.573]
[1757733396379,26.4125,4710.0,4709.9,36.573]
[1757733397380,25.9617,4710.0,4709.9,36.573]
[1757733397788,27.1917,4710.0,4709.9,36.573]
[1757733398560,27.6425,4710.0,4709.9,36.573]
[1757733399287,28.8725,4710.0,4709.9,36.573]
[1757733399867,31.03239719,4710.0,4709.9,36.573]
[1757733400064,28.8725,4710.0,4709.9,36.573]
[1757733400456,28.4217,4710.0,4709.9,36.573]
[1757733400794,29.6517,4710.0,4709.9,36.573]
[1757733400995,30.1025,4710.0,4709.9,36.573]
[1757733401190,29.6517,4710.0,4709.9,36.573]
[1757733401855,30.8817,4710.0,4709.9,36.573]
[1757733402188,30.8837,4710.0,4709.9,36.573]
[1757733402389,30.8837,4710.0,4709.9,6.573]
[1757733402605,30.8837,4710.0,4709.9,36.573]
[1757733402784,28.292,4710.0,4709.9,36.573]
[1757733403089,28.292,4710.0,4709.9,36.8845]
[1757733403258,29.522,4710.0,4709.9,36.8845]
[1757733403462,29.522,4710.0,4709.9,36.573]
[1757733404193,29.8125,4710.0,4709.9,36.573]
[1757733404406,32.3069,4710.0,4709.9,6.573]
[1757733404581,33.9877,4710.0,4709.9,36.573]
[1757733406127,35.2177,4710.0,4709.9,36.573]
[1757733407512,36.4477,4710.0,4709.9,36.573]
[1757733408027,35.9969,4710.0,4709.9,36.573]
[1757733408184,33.5025,4710.0,4709.9,36.573]
[1757733408923,37.219,4710.0,4709.9,36.573]
[1757733409134,37.6658,4710.0,4709.9,36.573]
[1757733409430,34.442,4710.0,4709.9,37.48760286]
[1757733409841,34.442,4710.0,4709.9,37.7343578]
[1757733410395,35.672,4710.0,4709.9,38.1889578]
[1757733411815,36.902,4710.0,4709.9,40.5008578]
[1757733412556,36.902,4710.0,4709.9,38.1889578]
[1757733413016,38.132,4710.0,4709.9,38.1889578]
[1757733414047,38.132,4710.0,4709.9,37.7343578]
[1757733414248,38.132,4710.0,4709.9,37.45549906]
[1757733414443,39.362,4710.0,4709.9,37.45549906]
[1757733416456,40.592,4710.0,4709.9,37.45549906]
[1757733417060,40.592,4710.0,4709.9,40.5008578]
[1757733417947,41.822,4710.0,4709.9,40.5008578]
[1757733418657,41.822,4710.0,4709.9,10.5008578]
[1757733418968,41.822,4710.0,4709.9,38.1889578]
[1757733419216,43.052,4710.0,4709.9,38.1889578]
[1757733419503,43.052,4710.0,4709.9,37.56109906]
[1757733420083,43.052,4710.0,4709.9,37.24469906]
[1757733420320,43.346,4710.0,4709.9,37.24469906]
[1757733420615,43.052,4710.0,4709.9,37.91009906]
[1757733420817,44.282,4710.0,4709.9,37.91009906]
[1757733421172,44.282,4710.0,4709.9,37.13909906]
[1757733421374,44.576,4710.0,4709.9,37.13909906]